bitfinex/quotes_ETHUSD_20241106
["timestamp","ask_amount","ask_price","bid_price","bid_amount"]
[1730914972366,1.07523115,2660.0,2659.1,0.8279]
[1730914972524,1.07523115,2660.0,2658.8,12.13]
[1730914972525,3.75946,2660.0,2659.2,0.07520467]
[1730914972733,3.75946,2660.0,2659.2,0.7937]
[1730914974146,7.11063519,2660.1,2659.2,0.7937]
[1730914976253,10.86989519,2660.1,2659.2,0.7937]
[1730914976440,3.75946,2660.0,2659.2,0.7937]
[1730914977336,10.86990519,2660.1,2659.2,0.7937]
[1730914980061,10.86990519,2660.1,2659.3,0.8058]
[1730914980062,3.75955,2659.9,2659.3,0.8058]
[1730914980268,8.57353171,2660.1,2659.3,0.8058]
[1730914980485,12.33280171,2660.1,2659.3,0.88099993]
[1730914980639,5.22216652,2660.1,2659.3,0.8058]
[1730914981241,1.46289652,2660.1,2659.3,0.8058]
[1730914981438,3.75889,2660.4,2659.5,0.8166]
[1730914981664,1.65,2660.5,2659.7,0.8166]
[1730914982765,5.4087,2660.5,2659.7,0.8166]
[1730914982967,3.75884,2660.4,2659.7,0.8166]
[1730914983676,4.65,2660.5,2659.7,0.8166]
[1730914985403,1.65,2660.5,2659.9,0.771]
[1730914987401,6.75815,2660.9,2659.9,0.771]
[1730914987701,7.87547384,2660.9,2659.9,0.771]
[1730914989102,3.75827,2660.8,2659.9,0.771]
[1730914989475,2.95,2660.9,2659.9,0.771]
[1730914989676,6.70812,2660.9,2660.1,0.8167]
[1730914991187,3.0,2660.9,2660.1,0.8167]
[1730914991392,3.3910984,2661.0,2660.1,0.8167]
[1730914992073,3.0,2660.9,2660.1,0.8167]
[1730914992277,6.75813,2660.9,2660.1,0.8167]
[1730914992974,3.75848,2660.7,2660.1,0.8167]
[1730914994376,7.517,2660.7,2660.1,0.8167]
[1730914994583,3.75848,2660.7,2660.1,0.8167]
[1730914994973,3.75863,2660.6,2660.1,0.8167]
[1730914995188,3.75877,2660.5,2660.1,0.8167]
[1730914995707,0.3910984,2661.0,2660.1,0.8167]
[1730914995909,3.75707,2661.7,2660.1,0.8167]
[1730914995910,3.75738,2661.5,2660.3,0.8158]
[1730914996218,3.33,2661.6,2660.6,0.8158]
[1730914996417,3.33,2661.6,2660.9,0.8158]
[1730914997028,3.75735,2661.5,2660.9,0.8158]
[1730914997383,3.75758,2661.3,2660.9,0.8158]
[1730914997894,3.0,2661.4,2660.9,0.8158]
[1730914998580,6.75747,2661.4,2660.9,0.8158]
[1730914999886,10.51497,2661.4,2660.9,0.8158]
[1730915000116,6.75747,2661.4,2660.9,0.8158]
[1730915000893,10.51497,2661.4,2660.9,0.8158]
[1730915001130,6.75747,2661.4,2660.9,0.8158]
[1730915001582,3.75758,2661.3,2660.9,0.8158]
[1730915002531,3.0,2661.5,2660.9,0.8158]
[1730915003027,3.75743,2661.4,2660.9,0.8158]
[1730915005837,6.75728,2661.5,2660.9,0.8158]
[1730915006134,8.21926635,2662.0,2660.9,0.8158]
[1730915006328,3.75749,2661.4,2660.9,0.8158]
[1730915007226,3.75724,2661.6,2660.9,0.8158]
[1730915007227,3.0,2661.5,2660.9,0.8158]
[1730915007529,6.75729,2661.5,2660.9,0.8158]
[1730915008328,3.0,2661.5,2660.9,0.8158]
[1730915010425,6.75729,2661.5,2660.9,0.8158]
[1730915010837,3.75779,2661.2,2660.9,0.8158]
[1730915011126,3.75795,2661.1,2660.9,0.8158]
[1730915012508,3.75797,2661.1,2660.9,0.8158]
[1730915013309,3.75798,2661.0,2660.1,0.8147]
[1730915015051,3.75823,2660.9,2660.1,0.8147]
[1730915015216,3.75823,2660.9,2660.3,0.7821]
[1730915017608,3.75815,2660.9,2660.3,0.7821]
[1730915021922,7.51636,2660.9,2660.3,0.7821]
[1730915022326,3.75815,2660.9,2660.3,0.7821]
[1730915022767,3.75784,2661.1,2660.3,0.7821]
[1730915022968,4.58681,2661.2,2660.5,0.8167]
[1730915022969,3.0,2661.2,2660.5,0.8167]
[1730915023609,3.75789,2661.1,2660.5,0.8167]
[1730915023726,3.75806,2661.0,2660.5,0.8167]
[1730915025665,3.75826,2660.8,2660.5,0.8167]
[1730915025867,3.75849,2660.7,2660.5,0.8167]
[1730915026227,3.75828,2660.8,2660.5,0.8167]
[1730915027759,7.51666,2660.8,2660.5,0.8167]
[1730915028083,3.75828,2660.8,2660.5,0.8167]
[1730915029689,3.75787,2661.1,2660.5,0.8167]
[1730915029887,3.75814,2660.9,2660.5,0.8167]
[1730915031688,3.75826,2660.8,2660.5,0.8167]
[1730915032663,3.75841,2660.7,2660.5,0.8167]
[1730915034374,7.51689,2660.7,2660.5,0.8167]
[1730915034550,3.75841,2660.7,2660.5,0.8167]
[1730915035155,3.75855,2660.6,2660.5,0.8167]
[1730915035398,3.75869,2660.5,2660.1,0.7617]
[1730915035596,3.75869,2660.5,2660.1,2.12915848]
[1730915035799,3.75856,2660.6,2660.1,2.12915848]
[1730915039003,3.75855,2660.6,2660.1,2.12915848]
[1730915039161,3.75871,2660.5,2660.1,0.7617]
[1730915039364,3.75855,2660.6,2660.1,0.7617]
[1730915039702,7.5172,2660.6,2660.1,0.7617]
[1730915040703,3.75836,2660.8,2660.1,0.7617]
[1730915040915,3.75842,2660.7,2660.1,0.7617]
[1730915041079,3.75828,2660.8,2660.1,0.7617]
[1730915041703,3.75828,2660.8,2660.3,0.823]
[1730915042019,3.75814,2660.9,2660.3,0.823]
[1730915042163,3.75828,2660.8,2660.3,0.823]
[1730915042373,3.75848,2660.7,2660.3,0.823]
[1730915043381,3.75848,2660.7,2660.3,0.83237]
[1730915044394,3.75855,2660.6,2660.3,0.83237]
[1730915045726,3.75806,2661.0,2660.4,0.07517389]
[1730915046016,3.75784,2661.1,2660.5,0.7816]
[1730915046387,3.75778,2661.2,2660.7,0.7816]
[1730915046590,7.51559,2661.2,2660.7,0.7816]
[1730915046908,3.75724,2661.6,2660.7,1.62720417]
[1730915047103,7.51386,2661.8,2660.8,1.05010046]
[1730915047303,7.51386,2661.8,2661.0,0.7816]
[1730915047304,3.75699,2661.7,2661.0,0.7816]
[1730915047617,3.75693,2661.8,2661.2,0.8156]
[1730915047826,3.75699,2661.8,2661.2,0.8156]
[1730915048124,5.38391417,2661.9,2661.2,0.8156]
[1730915048419,3.75706,2661.7,2661.2,0.8156]
[1730915049017,3.75721,2661.6,2661.2,0.8156]
[1730915049217,3.75706,2661.7,2661.2,0.8156]
[1730915049419,3.7568,2661.9,2661.3,0.07514789]
[1730915049618,3.7568,2661.9,2661.2,0.8156]
[1730915050922,3.75691,2661.8,2661.2,0.8156]
[1730915052314,3.7568,2661.9,2661.4,0.7838]
[1730915052879,3.75692,2661.8,2661.4,0.7838]
[1730915053590,3.75701,2661.7,2661.4,0.7838]
[1730915053810,3.75714,2661.6,2661.4,0.7838]
[1730915054141,3.75701,2661.7,2661.4,0.7838]
[1730915054692,3.75683,2661.9,2661.4,0.7838]
[1730915054906,7.51368,2661.9,2661.4,0.7838]
[1730915055325,3.75683,2661.9,2661.4,0.7838]
[1730915055526,3.7569,2661.8,2661.4,0.7838]
[1730915055732,3.757,2661.7,2661.4,0.7838]
[1730915062831,3.7572,2661.6,2661.4,0.7838]
[1730915063146,3.75743,2661.4,2661.0,0.7517]
[1730915064149,3.75729,2661.5,2661.0,0.7517]
[1730915064825,3.75764,2661.3,2661.0,0.7517]
[1730915065444,3.75771,2661.2,2661.0,0.7517]
[1730915065650,3.75784,2661.1,2661.0,0.7517]
[1730915065860,3.75751,2661.4,2661.0,0.7517]
[1730915066164,3.75672,2661.9,2661.2,0.7755]
[1730915066328,0.7582,2662.8,2661.7,0.7755]
[1730915066536,3.75594,2662.5,2661.7,0.7755]
[1730915066867,7.51189,2662.5,2661.7,0.7755]
[1730915067069,3.75594,2662.5,2661.7,0.7755]
[1730915067371,3.75603,2662.4,2661.7,0.7755]
[1730915068942,3.75587,2662.5,2661.7,0.7755]
[1730915069166,3.75587,2662.5,2661.9,0.8299]
[1730915069870,3.75601,2662.4,2661.9,0.8299]
[1730915070073,3.75622,2662.3,2661.9,0.8299]
[1730915070253,3.75601,2662.4,2661.9,0.8299]
[1730915070455,3.75601,2662.4,2661.9,0.3957172]
[1730915071064,7.51211,2662.4,2661.9,0.3957172]
[1730915071259,3.75617,2662.3,2661.9,0.3957172]
[1730915071561,4.53501,2662.5,2661.9,0.3957172]
[1730915071753,0.7791,2662.7,2661.9,0.3957172]
[1730915071962,7.5125,2662.3,2661.9,0.3957172]
[1730915072463,3.75623,2662.3,2661.9,0.3957172]
[1730915072857,7.51247,2662.3,2661.9,0.3957172]
[1730915073262,3.75629,2662.2,2661.9,0.3957172]
[1730915073956,3.75629,2662.2,2661.7,0.7714]
[1730915073957,3.75645,2662.1,2661.7,0.7714]
[1730915074277,3.75701,2661.7,2661.5,0.7714]
[1730915074442,3.75645,2662.1,2661.5,0.7714]
[1730915074639,7.51305,2662.1,2661.5,0.7714]
[1730915074890,3.75624,2662.3,2661.5,0.7714]
[1730915075259,3.75623,2662.3,2661.5,0.7714]
[1730915075459,4.374013,2662.3,2661.5,0.7714]
[1730915075856,3.7563,2662.2,2661.5,0.7714]
[1730915076763,3.75646,2662.1,2661.5,0.7714]
[1730915076973,3.75701,2661.7,2661.5,0.7714]
[1730915077480,7.51409,2661.7,2661.5,0.7714]
[1730915077683,3.75713,2661.6,2660.9,0.8276]
[1730915077855,3.75694,2661.8,2661.0,0.07515117]
[1730915078068,3.75664,2662.0,2661.1,0.8276]
[1730915078259,3.75664,2662.0,2661.3,0.8276]
[1730915078579,3.7568,2661.9,2661.3,0.8276]
[1730915078968,4.583023,2662.0,2661.3,0.8276]
[1730915079287,3.7568,2661.9,2661.3,0.8276]
[1730915079446,0.826383,2662.0,2661.3,0.8276]
[1730915079644,3.75689,2661.8,2661.3,0.8276]
[1730915080081,7.51385,2661.8,2661.3,0.8276]
[1730915080391,0.7508,2662.2,2661.3,0.8276]
[1730915080552,3.75686,2661.8,2661.3,0.8276]
[1730915081085,7.51381,2661.8,2661.3,0.8276]
[1730915081257,7.51381,2661.8,2660.8,12.13]
[1730915081258,0.7515,2661.3,2660.8,0.7523]
[1730915081466,0.7515,2661.3,2660.3,0.00937]
[1730915081467,3.75836,2660.8,2660.6,0.7523]
[1730915081677,3.7584,2660.7,2660.6,0.7523]
[1730915081844,3.7584,2660.7,2660.3,0.00937]
[1730915081845,3.75855,2660.6,2660.4,0.7523]
[1730915082459,3.75869,2660.5,2660.4,0.7523]
[1730915083291,3.75883,2660.4,2660.3,0.00937]
[1730915084367,4.510583,2660.4,2660.3,0.00937]
[1730915086586,3.75883,2660.4,2660.3,0.00937]
[1730915086789,3.7587,2660.5,2660.3,0.00937]
[1730915087082,0.7939,2660.4,2660.3,0.00937]
[1730915087295,3.75883,2660.4,2660.3,0.00937]
[1730915087861,3.7585,2660.7,2660.3,0.00937]
[1730915088048,3.75883,2660.4,2660.3,0.83447]
[1730915088751,3.75883,2660.4,2660.3,0.00937]
[1730915089175,4.510593,2660.4,2660.3,0.00937]
[1730915090408,3.75883,2660.4,2660.3,0.00937]
[1730915093381,3.75869,2660.5,2660.3,0.00937]
[1730915093736,3.75847,2660.7,2660.4,0.7576]
[1730915093855,3.75856,2660.6,2660.4,0.7576]
[1730915094563,3.75883,2660.4,2660.3,0.00937]
[1730915095014,3.75866,2660.6,2660.3,0.00937]
[1730915095294,3.75881,2660.5,2660.3,0.00937]
[1730915098827,3.75856,2660.6,2660.3,0.00937]
[1730915099328,3.0,2660.7,2660.3,0.00937]
[1730915099633,7.51692,2660.7,2660.3,0.00937]
[1730915100484,3.75841,2660.7,2660.3,0.00937]
[1730915101128,3.75795,2661.1,2660.4,0.8]
[1730915101332,3.7582,2660.9,2660.4,0.8]
[1730915102033,3.7582,2660.9,2660.4,4.55875]
[1730915102331,3.75827,2660.8,2660.4,5.015562]
[1730915102844,3.75827,2660.8,2660.4,1.256812]
[1730915102992,3.75857,2660.6,2660.4,0.8]
[1730915103192,3.75851,2660.7,2660.3,0.00937]
[1730915103733,7.51703,2660.7,2660.3,0.00937]
[1730915103892,3.75851,2660.7,2660.3,0.00937]
[1730915104288,3.75833,2660.8,2660.4,0.75]
[1730915104526,7.51644,2660.9,2660.4,4.960638]
[1730915104825,3.75821,2660.9,2660.4,0.75]
[1730915105205,3.75834,2660.8,2660.4,0.75]
[1730915105409,3.0,2661.0,2660.6,3.75852]
[1730915105637,3.0,2661.0,2660.4,0.75]
[1730915105638,3.75793,2661.1,2660.7,0.75]
[1730915105932,3.75805,2661.0,2660.7,0.75]
[1730915106805,3.75793,2661.1,2660.7,0.75]
[1730915107004,3.75791,2661.1,2660.7,0.75]
[1730915107410,6.75771,2661.2,2660.7,4.50839]
[1730915108140,3.0,2661.2,2660.8,3.7582]
[1730915108434,6.75773,2661.2,2660.7,4.50839]
[1730915108946,6.75773,2661.2,2660.7,8.26673]
[1730915109310,6.75773,2661.2,2660.7,4.50833]
[1730915109544,3.75737,2661.5,2660.8,0.07516016]
[1730915109747,3.75737,2661.5,2661.0,3.75798]
[1730915109947,3.75735,2661.5,2661.0,3.75798]
[1730915110250,3.75782,2661.2,2660.7,0.7893]
[1730915110421,3.75791,2661.1,2660.7,0.7893]
[1730915110605,0.7546,2661.3,2660.7,4.54766]
[1730915110810,0.7546,2661.3,2660.7,0.7893]
[1730915111041,3.75794,2661.1,2660.7,0.7893]
[1730915112910,3.75784,2661.2,2660.7,4.54758]
[1730915113111,3.75785,2661.1,2660.7,4.54758]
[1730915113741,3.75799,2661.0,2660.7,0.7893]
[1730915114512,3.75786,2661.1,2660.7,4.54769]
[1730915114666,3.75786,2661.1,2660.7,0.7893]
[1730915114871,3.75857,2660.6,2660.3,0.76357]
[1730915115069,3.75841,2660.7,2660.3,0.76357]
[1730915115277,3.75742,2661.4,2660.8,0.7569]
[1730915115486,0.90390708,2661.5,2660.8,0.7569]
[1730915115487,3.7577,2661.3,2660.8,0.7569]
[1730915115709,3.75779,2661.2,2660.8,0.7569]
[1730915116773,0.833699,2661.2,2660.8,0.7569]
[1730915116974,3.75792,2661.1,2660.8,0.7569]
[1730915117385,0.8215,2661.3,2660.8,0.7569]
[1730915117602,4.57918,2661.3,2660.8,4.5151]
[1730915117805,3.75772,2661.2,2660.8,4.5151]
[1730915118016,3.75772,2661.2,2660.8,0.7569]
[1730915118372,4.57918,2661.3,2660.8,0.7569]
[1730915118579,3.75785,2661.1,2660.8,0.7569]
[1730915121529,3.75808,2661.0,2660.4,4.52093]
[1730915122377,3.75808,2661.0,2660.5,3.75867]
[1730915122577,3.75785,2661.1,2660.6,3.75854]
[1730915122778,3.75785,2661.1,2660.5,3.75868]
[1730915123518,3.75806,2661.0,2660.5,3.75868]
[1730915124085,3.75785,2661.1,2660.6,3.75847]
[1730915124418,3.75772,2661.2,2660.7,3.75831]
[1730915125816,3.75763,2661.3,2660.8,3.75816]
[1730915125972,3.75763,2661.3,2660.9,0.8257]
[1730915126376,3.75742,2661.4,2660.9,4.58375]
[1730915126611,3.75728,2661.5,2661.0,3.75791]
[1730915126911,3.75744,2661.4,2661.0,3.75791]
[1730915127974,3.7573,2661.5,2661.0,3.75791]
[1730915130543,3.75721,2661.6,2661.0,3.75791]
[1730915130857,3.75742,2661.4,2661.0,3.75791]
[1730915133117,3.75742,2661.4,2660.9,0.8257]
[1730915133317,3.75742,2661.4,2660.9,4.5838]
[1730915136839,3.75764,2661.3,2660.9,0.8257]
[1730915137014,3.75779,2661.2,2660.9,0.8257]
[1730915137415,3.7577,2661.2,2660.9,0.8257]
[1730915138755,7.51547,2661.2,2660.9,0.8257]
[1730915138969,3.7577,2661.2,2660.9,0.8257]
[1730915139865,3.75761,2661.3,2660.9,0.8257]
[1730915141973,4.133182,2661.4,2660.9,4.58382]
[1730915142631,3.75756,2661.3,2660.9,4.58382]
[1730915142863,3.75756,2661.3,2660.9,0.8257]
[1730915143077,4.5466222,2661.3,2660.9,0.8257]
[1730915143733,0.7890622,2661.3,2660.9,4.58382]
[1730915143954,7.51471,2661.5,2660.9,8.34187]
[1730915144381,3.75732,2661.5,2660.9,8.34187]
[1730915144683,3.75732,2661.5,2660.9,4.58375]
[1730915144894,6.22948,2661.7,2660.9,4.58372]
[1730915145076,3.7573,2661.5,2661.0,3.7579]
[1730915145989,3.75622,2662.3,2661.7,0.8103]
[1730915146284,4.59909897,2662.5,2662.1,1.62702968]
[1730915146285,1.65,2662.5,2662.1,1.62702968]
[1730915146492,0.7846,2662.9,2662.4,3.75595]
[1730915146789,7.5105,2663.0,2662.4,3.7559]
[1730915146997,0.375524,2662.9,2662.4,3.7559]
[1730915147153,0.01,2662.7,2661.8,0.78149178]
[1730915147357,1.62702968,2661.9,2661.6,0.15154196]
[1730915147684,3.75729,2661.5,2661.0,0.8103]
[1730915147891,4.898489,2661.4,2661.0,0.8103]
[1730915149300,3.75807,2661.0,2660.6,0.8269]
[1730915149600,3.75807,2661.0,2660.4,0.8269]
[1730915149601,4.56997,2661.0,2660.4,0.8269]
[1730915149759,4.56997,2661.0,2660.4,4.5857]
[1730915149953,8.32749,2661.2,2660.5,3.75869]
[1730915150153,3.0,2661.1,2660.6,3.75846]
[1730915150593,7.890749,2661.4,2660.8,3.75826]
[1730915150755,3.75771,2661.2,2660.7,0.8269]
[1730915150960,3.75786,2661.1,2660.7,0.8269]
[1730915152289,3.75771,2661.2,2660.7,0.8269]
[1730915152465,3.75771,2661.2,2660.7,4.58522]
[1730915152660,3.75771,2661.2,2660.7,0.8269]
[1730915152860,4.4710539,2661.2,2660.7,0.8269]
[1730915153106,3.75786,2661.1,2660.7,0.8269]
[1730915153675,4.4710439,2661.2,2660.7,4.5853]
[1730915157890,3.75788,2661.1,2660.7,4.5853]
[1730915158679,0.7133439,2661.2,2660.7,0.8269]
[1730915159031,0.7133439,2661.2,2660.3,3.76825]
[1730915159032,6.75798,2661.0,2660.3,0.79237]
[1730915159332,0.7604,2660.7,2660.3,0.00937]
[1730915159539,3.75836,2660.8,2660.3,0.00937]
[1730915159698,3.7585,2660.7,2660.3,0.00937]
[1730915160037,3.75855,2660.6,2660.3,0.00937]
[1730915160243,3.7587,2660.5,2660.3,0.00937]
[1730915160410,3.751876,2660.8,2660.3,0.00937]
[1730915160411,3.0,2660.7,2660.3,0.00937]
[1730915160611,6.75848,2660.7,2660.3,0.00937]
[1730915160926,3.75871,2660.5,2660.3,0.00937]
[1730915161236,3.75883,2660.4,2660.3,0.00937]
[1730915161931,3.75871,2660.5,2660.3,0.00937]
[1730915162303,3.75883,2660.4,2660.3,0.00937]
[1730915162800,3.75871,2660.5,2660.3,0.00937]
[1730915163027,4.93072146,2660.5,2660.3,0.00937]
[1730915163237,7.9614046,2660.7,2660.3,0.00937]
[1730915163448,3.75878,2660.5,2660.3,0.00937]
[1730915163949,8.7198946,2660.7,2660.4,0.7877]
[1730915164364,4.9614046,2660.7,2660.4,0.7877]
[1730915164536,1.2029146,2660.7,2660.4,0.7877]
[1730915164741,3.75841,2660.7,2660.4,0.7877]
[1730915164956,3.75877,2660.5,2660.3,0.00937]
[1730915165663,7.51758,2660.5,2660.3,0.00937]
[1730915165866,3.75883,2660.4,2660.3,0.00937]
[1730915166070,3.75877,2660.5,2660.3,0.00937]
[1730915166279,3.75856,2660.6,2660.3,0.00937]
[1730915166582,4.55567,2660.7,2660.3,0.00937]
[1730915166743,0.455567,2660.6,2660.3,0.00937]
[1730915166948,3.75883,2660.4,2660.3,0.00937]
[1730915167485,3.75881,2660.5,2660.3,0.00937]
[1730915167649,3.75883,2660.4,2660.3,0.00937]
[1730915169690,4.54613,2660.4,2660.3,0.00937]
[1730915169999,0.01,2660.3,2659.3,0.8032]
[1730915170329,3.76047,2659.3,2659.1,0.8032]
[1730915170490,4.54715,2659.7,2658.4,1.17223768]
[1730915170491,0.7873,2659.7,2658.8,0.8032]
[1730915170699,3.76081,2659.0,2658.8,0.8032]
[1730915170877,3.76095,2658.9,2658.5,0.8032]
[1730915171262,3.76102,2658.9,2658.5,0.8032]
[1730915171462,3.76081,2659.0,2658.5,0.8032]
[1730915171663,3.76109,2658.8,2658.5,0.8032]
[1730915172198,3.76109,2658.8,2658.3,0.05642517]
[1730915172579,3.0,2658.9,2658.3,3.81809517]
[1730915172778,3.76117,2658.8,2658.3,3.81809517]
[1730915172964,3.76117,2658.8,2658.3,0.05642517]
[1730915173172,3.76141,2658.6,2658.2,0.7654]
[1730915173604,3.76183,2658.3,2657.8,0.7654]
[1730915173754,3.76196,2658.2,2657.8,0.7654]
[1730915174139,6.76208,2658.1,2657.6,0.7654]
[1730915174538,3.7625,2657.9,2657.3,3.76312]
[1730915174836,3.7625,2657.9,2657.1,3.76342]
[1730915174837,4.873302,2658.1,2657.4,0.7654]
[1730915175043,4.58257,2658.4,2657.9,3.76235]
[1730915175347,3.0,2658.3,2657.8,3.76249]
[1730915175501,3.0,2658.3,2657.6,3.76275]
[1730915175702,3.76195,2658.2,2657.6,7.52545]
[1730915175896,3.7621,2658.1,2657.6,3.7627]
[1730915176098,6.76189,2658.3,2657.8,3.76249]
[1730915176297,6.76159,2658.5,2657.9,4.52776]
[1730915176751,3.76169,2658.4,2657.9,0.7654]
[1730915177046,3.76147,2658.6,2658.0,3.76209]
[1730915177548,3.76154,2658.5,2658.0,3.76209]
[1730915177867,0.8209,2658.7,2657.9,0.7654]
[1730915178016,3.76139,2658.6,2658.0,3.76208]
[1730915178614,0.8209,2658.7,2657.9,0.7654]
[1730915178615,3.8209,2658.7,2657.9,0.7654]
[1730915178809,3.8209,2658.7,2658.0,3.76221]
[1730915178810,3.76145,2658.6,2658.0,3.76221]
[1730915179316,3.0,2658.7,2658.0,3.76221]
[1730915179545,3.0,2658.7,2658.2,3.76186]
[1730915179841,3.0,2658.7,2658.0,4.214971]
[1730915180148,3.76139,2658.6,2658.0,7.977121]
[1730915180350,3.76139,2658.6,2658.0,4.214911]
[1730915180522,6.76124,2658.7,2658.1,4.2600511]
[1730915180899,4.65,2658.8,2658.1,0.4980311]
[1730915181201,1.65,2658.8,2658.3,3.76168]
[1730915181547,3.0,2658.7,2658.1,7.52397]
[1730915181716,3.0,2658.7,2658.1,3.76198]
[1730915182049,3.0,2658.7,2658.2,3.76186]
[1730915182940,3.0,2658.9,2658.5,0.8309]
[1730915183244,3.76091,2659.0,2658.5,1.290156]
[1730915183637,3.76091,2659.0,2658.5,0.8309]
[1730915183803,3.33,2659.1,2658.5,4.59234]
[1730915184005,3.33,2659.1,2658.6,3.7613]
[1730915184519,3.0,2659.0,2658.6,3.7613]
[1730915184753,6.76094,2659.0,2658.5,0.8309]
[1730915184951,3.0,2659.0,2658.5,0.8309]
[1730915185237,3.76096,2658.9,2658.5,0.8309]
[1730915185448,7.522,2658.9,2658.5,0.8309]
[1730915185603,3.76096,2658.9,2658.5,0.8309]
[1730915186230,3.76096,2658.9,2658.2,0.7928]
[1730915186231,3.76111,2658.8,2658.2,0.7928]
[1730915187206,3.76111,2658.8,2658.2,4.55473]
[1730915187408,3.76096,2658.9,2658.2,0.7928]
[1730915187952,3.76139,2658.6,2657.9,3.76228]
[1730915188105,0.791,2658.7,2658.0,0.8114]
[1730915188312,0.791,2658.7,2657.7,4.57394]
[1730915188313,4.55226,2658.7,2657.7,4.57394]
[1730915188554,3.7619,2658.3,2657.7,4.57394]
[1730915188803,4.54636,2658.1,2657.5,4.57422]
[1730915189109,4.54636,2658.1,2657.3,4.57458]
[1730915189110,3.76258,2657.8,2657.3,4.57458]
[1730915189449,3.76258,2657.8,2657.1,3.76338]
[1730915189619,0.7842,2658.1,2656.9,8.27968]
[1730915189620,3.76294,2657.5,2656.9,8.27968]
[1730915189827,3.76294,2657.5,2656.9,8.27969]
[1730915190022,3.76322,2657.3,2656.9,0.7523]
[1730915190210,3.7631,2657.4,2656.9,0.7523]
[1730915190551,4.56508,2657.6,2656.9,0.7523]
[1730915190754,3.76304,2657.5,2656.9,4.51599]
[1730915190923,8.784458,2657.6,2657.0,3.76356]
[1730915191108,3.76308,2657.4,2656.9,0.7523]
[1730915191309,3.76326,2657.3,2656.9,0.7523]
[1730915192075,6.76307,2657.5,2656.9,0.7523]
[1730915192210,3.76322,2657.3,2656.9,0.7523]
[1730915192547,0.8021778,2657.4,2656.6,4.52595]
[1730915192712,7.52652,2657.3,2656.6,4.52595]
[1730915192920,3.76407,2656.7,2656.0,1.3868]
[1730915193118,3.76403,2656.8,2656.1,3.7649]
[1730915193317,7.91693519,2657.2,2656.2,3.76477]
[1730915193534,3.76371,2657.0,2656.4,3.76447]
[1730915193756,3.76351,2657.1,2656.5,4.52603]
[1730915193925,11.68038519,2657.2,2656.5,4.52603]
[1730915193926,11.68030519,2657.2,2656.6,3.76417]
[1730915194134,4.56967,2657.2,2656.6,3.76417]
[1730915194331,5.4094,2657.5,2656.6,0.90431999]
[1730915194534,5.4094,2657.5,2656.5,0.7618]
[1730915194535,5.4094,2657.5,2656.9,3.76367]
[1730915194726,3.76308,2657.4,2656.8,3.76385]
[1730915194923,2.4094,2657.5,2656.9,3.76373]
[1730915195122,2.4094,2657.5,2657.1,3.76349]
[1730915195565,2.4094,2657.5,2656.9,3.7637]
[1730915195780,1.65,2657.5,2657.1,3.76349]
[1730915196072,7.13,2657.7,2657.3,3.76314]
[1730915196219,7.13,2657.7,2657.1,3.76349]
[1730915196421,7.13,2657.7,2657.2,3.76335]
[1730915198457,7.13,2657.7,2657.3,3.76318]
[1730915198669,7.13,2657.7,2657.4,3.76306]
[1730915199463,3.33,2657.7,2657.4,3.763]
[1730915199857,3.76237,2657.9,2657.4,3.763]
[1730915200833,3.76252,2657.8,2657.0,4.93009]
[1730915201046,3.76314,2657.4,2657.0,0.7901]
[1730915201372,0.7672,2657.9,2656.8,7.52776]
[1730915201373,3.76323,2657.3,2656.8,7.52776]
[1730915201540,3.76308,2657.4,2656.8,7.52776]
[1730915202064,3.76352,2657.1,2656.4,3.76449]
[1730915202267,0.7672,2657.2,2656.7,3.76399]
[1730915202766,4.53057,2657.2,2656.7,3.76399]
[1730915203323,0.7672,2657.2,2656.8,3.76389]
[1730915204931,1.65,2657.4,2656.9,3.76369]
[1730915204932,2.4496,2657.4,2656.9,3.76369]
[1730915205132,1.65,2657.4,2656.9,3.76369]
[1730915205473,1.65,2657.4,2656.8,3.76389]
[1730915205474,3.76329,2657.3,2656.8,3.76389]
[1730915205638,3.76338,2657.2,2656.7,4.59406]
[1730915205968,2.273294,2657.4,2656.8,3.76385]
[1730915206261,3.76329,2657.3,2656.8,3.76385]
[1730915206566,3.76337,2657.2,2656.8,3.76385]
[1730915206739,3.76329,2657.3,2656.8,3.76385]
[1730915208358,7.52664,2657.3,2656.8,3.76385]
[1730915208580,3.76329,2657.3,2656.8,3.76385]
[1730915208737,1.65,2657.4,2657.0,3.76356]
[1730915209193,1.65,2657.4,2656.8,3.76384]
[1730915209478,7.52666,2657.3,2656.8,3.76392]
[1730915209681,3.76333,2657.3,2656.8,3.76392]
[1730915209968,7.52666,2657.3,2656.8,3.76392]
[1730915210179,8.444326,2657.3,2656.8,3.76392]
[1730915210332,4.680996,2657.3,2656.8,3.76392]
[1730915210534,4.680996,2657.3,2656.8,7.52775]
[1730915210771,3.76338,2657.2,2656.7,4.59403]
[1730915210953,4.680996,2657.3,2656.7,4.59403]
[1730915211166,4.680996,2657.3,2656.8,3.76384]
[1730915212280,3.76371,2657.0,2656.5,3.76434]
[1730915212440,3.76371,2657.0,2656.5,4.58704]
[1730915212643,8.1600396,2657.2,2656.5,4.58704]
[1730915212875,4.3965696,2657.2,2656.5,4.58704]
[1730915213031,4.3965696,2657.2,2656.6,3.76412]
[1730915213236,3.76364,2657.0,2656.6,3.76412]
[1730915213436,7.5274,2657.0,2656.5,0.8227]
[1730915213859,3.764,2656.8,2656.3,4.52502]